[Event "*** Titled Tuesday Blitz"]
[Site "Chess.com"]
[Date "2021.03.09"]
[Round "7"]
[White "Sadykov_Ramil"]
[Black "Barbix1"]
[Result "1-0"]
[WhiteElo "2575"]
[BlackElo "2418"]
[TimeControl "180+1"]
[EndTime "11:22:07 PST"]
[Termination "Sadykov_Ramil won on time"]

1. e4 {[%clk 0:03:00.9]} 1... e5 {[%clk 0:02:54.6]} 2. Nf3 {[%clk 0:02:59.6]}
2... Nc6 {[%clk 0:02:54.7]} 3. Bb5 {[%clk 0:03:00.1]} 3... g6 {[%clk 0:02:54.3]}
4. c3 {[%clk 0:02:49]} 4... a6 {[%clk 0:02:53.7]} 5. Bxc6 {[%clk 0:02:45.8]}
5... dxc6 {[%clk 0:02:54.6]} 6. d4 {[%clk 0:02:42.7]} 6... exd4 {[%clk 0:02:54]}
7. cxd4 {[%clk 0:02:42.4]} 7... Bg7 {[%clk 0:02:54.4]} 8. h3 {[%clk 0:02:40.2]}
8... Ne7 {[%clk 0:02:54.3]} 9. Nc3 {[%clk 0:02:38.1]} 9... O-O {[%clk
0:02:54.9]} 10. O-O {[%clk 0:02:30.5]} 10... h6 {[%clk 0:02:54.7]} 11. Be3
{[%clk 0:02:24.3]} 11... f5 {[%clk 0:02:28.1]} 12. Qd2 {[%clk 0:02:01.4]} 12...
Kh7 {[%clk 0:02:26.3]} 13. Ne5 {[%clk 0:01:49.1]} 13... c5 {[%clk 0:01:51.5]}
14. f4 {[%clk 0:01:41.6]} 14... cxd4 {[%clk 0:01:35.3]} 15. Qxd4 {[%clk
0:01:40]} 15... fxe4 {[%clk 0:01:28.3]} 16. Qxe4 {[%clk 0:01:33]} 16... Bf5
{[%clk 0:01:23.1]} 17. Qxb7 {[%clk 0:01:28.5]} 17... Rb8 {[%clk 0:01:07.7]} 18.
Qxa6 {[%clk 0:01:28.1]} 18... Rxb2 {[%clk 0:01:07.7]} 19. Rad1 {[%clk
0:01:18.1]} 19... Qa8 {[%clk 0:01:07.4]} 20. Qxa8 {[%clk 0:01:01.6]} 20... Rxa8
{[%clk 0:01:08.3]} 21. Rf2 {[%clk 0:00:58.3]} 21... Rxf2 {[%clk 0:01:03]} 22.
Kxf2 {[%clk 0:00:59.2]} 22... Ra3 {[%clk 0:00:59.8]} 23. Rc1 {[%clk 0:00:52.7]}
23... Ra5 {[%clk 0:00:40.8]} 24. Bd4 {[%clk 0:00:44.1]} 24... c6 {[%clk
0:00:13.8]} 25. g4 {[%clk 0:00:40.6]} 25... Be6 {[%clk 0:00:13.3]} 26. a4 {[%clk
0:00:38.6]} 26... Nd5 {[%clk 0:00:12.4]} 27. Nxd5 {[%clk 0:00:34.7]} 27... Bxd5
{[%clk 0:00:13.3]} 28. Ra1 {[%clk 0:00:33.8]} 28... Bb3 {[%clk 0:00:09.3]} 29.
Nxc6 {[%clk 0:00:33.3]} 29... Rxa4 {[%clk 0:00:09.9]} 30. Bxg7 {[%clk
0:00:27.6]} 30... Kxg7 {[%clk 0:00:07.1]} 31. Rxa4 {[%clk 0:00:25.9]} 31... Bxa4
{[%clk 0:00:07.4]} 32. Ne5 {[%clk 0:00:21.3]} 32... Kf6 {[%clk 0:00:04.5]} 33.
Ke3 {[%clk 0:00:19.2]} 33... Bc2 {[%clk 0:00:04.5]} 34. Nf3 {[%clk 0:00:17.9]}
34... h5 {[%clk 0:00:02.6]} 35. g5+ {[%clk 0:00:14.4]} 35... Kf7 {[%clk
0:00:02.8]} 36. Kd4 {[%clk 0:00:13]} 36... Ke6 {[%clk 0:00:01.3]} 37. Ke3 {[%clk
0:00:12.2]} 37... Bb1 {[%clk 0:00:01.8]} 38. Nd4+ {[%clk 0:00:12]} 38... Kd5
{[%clk 0:00:01.5]} 39. f5 {[%clk 0:00:10.2]} 39... gxf5 {[%clk 0:00:01.2]} 40.
Ne2 {[%clk 0:00:07.3]} 40... Ke5 {[%clk 0:00:01.3]} 41. Nf4 {[%clk 0:00:06.8]}
41... Ba2 {[%clk 0:00:01.3]} 42. Nxh5 {[%clk 0:00:06.5]} 1-0

[Event "*** Titled Tuesday Blitz"]
[Site "Chess.com"]
[Date "2021.03.09"]
[Round "7"]
[White "Kaslask"]
[Black "VFernandezB"]
[Result "1-0"]
[WhiteElo "2358"]
[BlackElo "2487"]
[TimeControl "180+1"]
[EndTime "11:22:07 PST"]
[Termination "Kaslask won on time"]

1. d4 {[%clk 0:03:00.9]} 1... Nf6 {[%clk 0:02:59.9]} 2. c4 {[%clk 0:03:00.6]}
2... g6 {[%clk 0:03:00.3]} 3. Nc3 {[%clk 0:02:59.4]} 3... d5 {[%clk 0:03:00.9]}
4. cxd5 {[%clk 0:02:58.3]} 4... Nxd5 {[%clk 0:03:01.3]} 5. Bd2 {[%clk
0:02:58.7]} 5... Bg7 {[%clk 0:03:00.9]} 6. e4 {[%clk 0:02:58.5]} 6... Nb6 {[%clk
0:03:01.2]} 7. Be3 {[%clk 0:02:57.3]} 7... O-O {[%clk 0:03:01.3]} 8. f4 {[%clk
0:02:56.7]} 8... f5 {[%clk 0:02:55.1]} 9. e5 {[%clk 0:02:48.2]} 9... Be6 {[%clk
0:02:50.4]} 10. Nf3 {[%clk 0:02:47.9]} 10... Nd5 {[%clk 0:02:49.5]} 11. Bd2
{[%clk 0:02:42.7]} 11... h6 {[%clk 0:02:45.6]} 12. Bc4 {[%clk 0:02:40.4]} 12...
c6 {[%clk 0:02:44]} 13. a4 {[%clk 0:02:38.2]} 13... Nd7 {[%clk 0:02:38.4]} 14.
O-O {[%clk 0:02:27.1]} 14... N7b6 {[%clk 0:02:37.4]} 15. Bb3 {[%clk 0:02:27]}
15... a5 {[%clk 0:02:37.1]} 16. Kh1 {[%clk 0:02:18.7]} 16... Qd7 {[%clk
0:02:33]} 17. Nh4 {[%clk 0:02:08.4]} 17... Kh7 {[%clk 0:02:27.4]} 18. Rf3 {[%clk
0:02:08]} 18... Rad8 {[%clk 0:01:40.4]} 19. Rg3 {[%clk 0:02:06]} 19... Bf7
{[%clk 0:01:40.1]} 20. Nxd5 {[%clk 0:02:01.3]} 20... Nxd5 {[%clk 0:01:28.9]} 21.
Bxa5 {[%clk 0:01:59.4]} 21... b6 {[%clk 0:01:28.9]} 22. Bd2 {[%clk 0:01:58.8]}
22... e6 {[%clk 0:01:07.8]} 23. Bc2 {[%clk 0:01:51.6]} 23... Ne7 {[%clk
0:01:05.3]} 24. Bc3 {[%clk 0:01:44.9]} 24... Qb7 {[%clk 0:00:34]} 25. Bb4 {[%clk
0:01:37.8]} 25... c5 {[%clk 0:00:33.7]} 26. Bc3 {[%clk 0:01:32.4]} 26... Nc6
{[%clk 0:00:33.3]} 27. Rd3 {[%clk 0:01:18.9]} 27... Qe7 {[%clk 0:00:33.1]} 28.
Nf3 {[%clk 0:01:17.4]} 28... c4 {[%clk 0:00:30.1]} 29. Rd2 {[%clk 0:01:16.5]}
29... Nb4 {[%clk 0:00:28.8]} 30. Qe2 {[%clk 0:01:14.5]} 30... Nd5 {[%clk
0:00:18.8]} 31. g3 {[%clk 0:01:06.2]} 31... Rc8 {[%clk 0:00:18.1]} 32. Kg2
{[%clk 0:01:03.4]} 32... Rfd8 {[%clk 0:00:18.3]} 33. h3 {[%clk 0:01:02.8]} 33...
g5 {[%clk 0:00:18.6]} 34. Qf2 {[%clk 0:00:53.9]} 34... Bg6 {[%clk 0:00:16.2]}
35. Kh2 {[%clk 0:00:49.1]} 35... gxf4 {[%clk 0:00:16.4]} 36. g4 {[%clk
0:00:49.1]} 36... fxg4 {[%clk 0:00:15.3]} 37. Bxg6+ {[%clk 0:00:47.9]} 37...
Kxg6 {[%clk 0:00:16.2]} 38. Qg2 {[%clk 0:00:38.3]} 38... g3+ {[%clk 0:00:16.5]}
39. Kh1 {[%clk 0:00:35.8]} 39... Ne3 {[%clk 0:00:17]} 40. Nh4+ {[%clk
0:00:28.8]} 40... Qxh4 {[%clk 0:00:16.7]} 41. Qe4+ {[%clk 0:00:28.4]} 41... Kf7
{[%clk 0:00:16.8]} 42. Kg1 {[%clk 0:00:19.8]} 42... Qxh3 {[%clk 0:00:08.9]} 43.
Qxf4+ {[%clk 0:00:18.6]} 43... Qf5 {[%clk 0:00:09.1]} 44. Qxe3 {[%clk
0:00:18.2]} 44... Qf2+ {[%clk 0:00:03.8]} 45. Rxf2+ {[%clk 0:00:16.7]} 45...
gxf2+ {[%clk 0:00:04.6]} 46. Qxf2+ {[%clk 0:00:16.7]} 1-0

[Event "*** Titled Tuesday Blitz"]
[Site "Chess.com"]
[Date "2021.03.09"]
[Round "7"]
[White "HackingKid98"]
[Black "QuintilianoR"]
[Result "1/2-1/2"]
[WhiteElo "2463"]
[BlackElo "2673"]
[TimeControl "180+1"]
[EndTime "11:22:14 PST"]
[Termination "Game drawn by repetition"]

1. Nf3 {[%clk 0:03:00.9]} 1... Nf6 {[%clk 0:02:59.4]} 2. c4 {[%clk 0:03:00.9]}
2... e6 {[%clk 0:02:59.7]} 3. d4 {[%clk 0:03:00.6]} 3... d5 {[%clk 0:02:59]} 4.
g3 {[%clk 0:03:00.7]} 4... Be7 {[%clk 0:02:58.5]} 5. Bg2 {[%clk 0:03:00.8]} 5...
O-O {[%clk 0:02:59]} 6. Nc3 {[%clk 0:03:01]} 6... dxc4 {[%clk 0:02:56.7]} 7. Ne5
{[%clk 0:03:00.4]} 7... c5 {[%clk 0:02:56.5]} 8. dxc5 {[%clk 0:02:59.9]} 8...
Qxd1+ {[%clk 0:02:56.7]} 9. Nxd1 {[%clk 0:02:59.9]} 9... Bxc5 {[%clk 0:02:57.2]}
10. Nc3 {[%clk 0:03:00]} 10... Nc6 {[%clk 0:02:53.8]} 11. Nxc4 {[%clk
0:02:58.6]} 11... Bd7 {[%clk 0:02:47]} 12. O-O {[%clk 0:02:57]} 12... Rfd8
{[%clk 0:02:44]} 13. Bf4 {[%clk 0:02:55]} 13... Be8 {[%clk 0:02:41.1]} 14. Rfc1
{[%clk 0:02:54.6]} 14... Rac8 {[%clk 0:02:36.9]} 15. Rd1 {[%clk 0:02:53.9]}
15... h6 {[%clk 0:02:28.5]} 16. Rxd8 {[%clk 0:02:50.8]} 16... Rxd8 {[%clk
0:02:28.3]} 17. Rd1 {[%clk 0:02:51.7]} 17... Rxd1+ {[%clk 0:02:28]} 18. Nxd1
{[%clk 0:02:52.6]} 18... Nd5 {[%clk 0:02:25.7]} 19. Bd2 {[%clk 0:02:28]} 19...
a6 {[%clk 0:02:22]} 20. Nc3 {[%clk 0:02:26.5]} 20... Nxc3 {[%clk 0:02:20.5]} 21.
Bxc3 {[%clk 0:02:27.4]} 21... f6 {[%clk 0:02:20.8]} 22. a3 {[%clk 0:02:12.4]}
22... Kf7 {[%clk 0:01:21.5]} 23. b4 {[%clk 0:02:10.7]} 23... Be7 {[%clk
0:01:21.3]} 24. f4 {[%clk 0:02:06.7]} 24... h5 {[%clk 0:00:56.7]} 25. Kf2 {[%clk
0:02:04.2]} 25... g6 {[%clk 0:00:55.5]} 26. e4 {[%clk 0:02:04.2]} 26... Nd8
{[%clk 0:00:54.4]} 27. e5 {[%clk 0:02:01]} 27... f5 {[%clk 0:00:50.2]} 28. Ke3
{[%clk 0:01:46.2]} 28... Bc6 {[%clk 0:00:48.6]} 29. Bf1 {[%clk 0:01:38.2]} 29...
h4 {[%clk 0:00:47.1]} 30. Nd6+ {[%clk 0:01:28.6]} 30... Bxd6 {[%clk 0:00:46]}
31. exd6 {[%clk 0:01:29.5]} 31... hxg3 {[%clk 0:00:46.6]} 32. hxg3 {[%clk
0:01:30.2]} 32... Ke8 {[%clk 0:00:44.6]} 33. Kd4 {[%clk 0:01:28.7]} 33... Nf7
{[%clk 0:00:39.2]} 34. Kc5 {[%clk 0:01:22.1]} 34... Kd7 {[%clk 0:00:38.9]} 35.
Be5 {[%clk 0:01:15.8]} 35... g5 {[%clk 0:00:32.4]} 36. Bc4 {[%clk 0:00:51.4]}
36... g4 {[%clk 0:00:21.6]} 37. Bf6 {[%clk 0:00:19.8]} 37... Nxd6 {[%clk
0:00:20.8]} 38. Bd3 {[%clk 0:00:19.8]} 38... Nb5 {[%clk 0:00:20.3]} 39. Bxb5
{[%clk 0:00:16.4]} 39... Bxb5 {[%clk 0:00:19.7]} 40. Be5 {[%clk 0:00:16.2]}
40... Bc6 {[%clk 0:00:20.1]} 41. Kb6 {[%clk 0:00:15.8]} 41... Bd5 {[%clk
0:00:18.5]} 42. a4 {[%clk 0:00:15.1]} 42... Be4 {[%clk 0:00:18.8]} 43. b5 {[%clk
0:00:13.3]} 43... axb5 {[%clk 0:00:19.7]} 44. Kxb5 {[%clk 0:00:12]} 44... Bf3
{[%clk 0:00:20.6]} 45. Kb6 {[%clk 0:00:11.5]} 45... Bc6 {[%clk 0:00:20.7]} 46.
a5 {[%clk 0:00:10.8]} 46... Bf3 {[%clk 0:00:21.6]} 47. Kc5 {[%clk 0:00:09]}
47... Bd5 {[%clk 0:00:20.3]} 48. Kb6 {[%clk 0:00:09.9]} 48... Be4 {[%clk
0:00:20.5]} 49. Kc5 {[%clk 0:00:10.8]} 49... Bd3 {[%clk 0:00:20.9]} 50. Kb6
{[%clk 0:00:11.7]} 50... Ba6 {[%clk 0:00:21.8]} 51. Kc5 {[%clk 0:00:10.4]} 51...
Bf1 {[%clk 0:00:22.7]} 52. Kb6 {[%clk 0:00:10]} 52... Ba6 {[%clk 0:00:23.6]} 53.
Kc5 {[%clk 0:00:09.9]} 53... Bf1 {[%clk 0:00:24.5]} 54. Kb6 {[%clk 0:00:09.9]}
54... Ba6 {[%clk 0:00:25.4]} 1/2-1/2

[Event "*** Titled Tuesday Blitz"]
[Site "Chess.com"]
[Date "2021.03.09"]
[Round "7"]
[White "kai_nov"]
[Black "Andrakhanova"]
[Result "1-0"]
[WhiteElo "2425"]
[BlackElo "2269"]
[TimeControl "180+1"]
[EndTime "11:22:15 PST"]
[Termination "kai_nov won by resignation"]

1. d4 {[%clk 0:03:00.9]} 1... d5 {[%clk 0:02:58.8]} 2. c4 {[%clk 0:03:00.6]}
2... e6 {[%clk 0:02:57.8]} 3. Nc3 {[%clk 0:03:00]} 3... c6 {[%clk 0:02:58]} 4.
Bf4 {[%clk 0:02:59.4]} 4... Nf6 {[%clk 0:02:56.4]} 5. e3 {[%clk 0:02:55.2]} 5...
Nbd7 {[%clk 0:02:55.8]} 6. Nf3 {[%clk 0:02:54.2]} 6... Be7 {[%clk 0:02:54.8]} 7.
Bd3 {[%clk 0:02:51.1]} 7... O-O {[%clk 0:02:54.6]} 8. O-O {[%clk 0:02:47.4]}
8... h6 {[%clk 0:02:54.8]} 9. Rc1 {[%clk 0:02:46.3]} 9... Nh5 {[%clk 0:02:54.6]}
10. Be5 {[%clk 0:02:44.9]} 10... Nxe5 {[%clk 0:02:52.8]} 11. dxe5 {[%clk
0:02:41.5]} 11... g6 {[%clk 0:02:50]} 12. Qe2 {[%clk 0:02:35.5]} 12... Ng7
{[%clk 0:02:47.2]} 13. Rfd1 {[%clk 0:02:35.3]} 13... Qe8 {[%clk 0:02:44.6]} 14.
e4 {[%clk 0:02:34]} 14... dxc4 {[%clk 0:02:36.4]} 15. Bxc4 {[%clk 0:02:33.7]}
15... h5 {[%clk 0:02:32]} 16. a4 {[%clk 0:02:25.8]} 16... b6 {[%clk 0:02:31.6]}
17. h3 {[%clk 0:02:12.9]} 17... a5 {[%clk 0:02:31]} 18. Qe3 {[%clk 0:02:08.1]}
18... Ba6 {[%clk 0:02:16]} 19. Bxa6 {[%clk 0:02:04.3]} 19... Rxa6 {[%clk
0:02:16.9]} 20. Qh6 {[%clk 0:01:57.4]} 20... f5 {[%clk 0:01:54.6]} 21. exf6
{[%clk 0:01:54.4]} 21... Rxf6 {[%clk 0:01:51.8]} 22. e5 {[%clk 0:01:50.9]} 22...
Rxf3 {[%clk 0:01:26.6]} 23. gxf3 {[%clk 0:01:49.2]} 23... Nf5 {[%clk 0:01:26.3]}
24. Qf4 {[%clk 0:01:40.6]} 24... Ra7 {[%clk 0:00:57]} 25. Ne4 {[%clk 0:01:35]}
25... Rd7 {[%clk 0:00:53.7]} 26. Nf6+ {[%clk 0:01:25.7]} 26... Bxf6 {[%clk
0:00:52.7]} 27. exf6 {[%clk 0:01:25.4]} 27... Kf7 {[%clk 0:00:46.9]} 28. Qe5
{[%clk 0:00:53]} 28... c5 {[%clk 0:00:37.6]} 29. Kg2 {[%clk 0:00:19.7]} 29...
Nd4 {[%clk 0:00:35.7]} 30. Qg5 {[%clk 0:00:14.6]} 30... Rd5 {[%clk 0:00:35.1]}
31. Qh6 {[%clk 0:00:13.3]} 31... Kxf6 {[%clk 0:00:34.5]} 32. Re1 {[%clk
0:00:10.7]} 32... Rf5 {[%clk 0:00:30.9]} 33. Re3 {[%clk 0:00:09.3]} 33... Nxf3
{[%clk 0:00:19.6]} 34. Rxf3 {[%clk 0:00:06.9]} 34... Qc6 {[%clk 0:00:19.8]} 35.
Qh8+ {[%clk 0:00:05.6]} 35... Kg5 {[%clk 0:00:19.3]} 36. Rc3 {[%clk 0:00:04.7]}
36... Qe4 {[%clk 0:00:15.9]} 37. Qd8+ {[%clk 0:00:03.9]} 37... Kh6 {[%clk
0:00:15.5]} 38. Qh8+ {[%clk 0:00:03.8]} 38... Kg5 {[%clk 0:00:15.5]} 39. Re3
{[%clk 0:00:03.6]} 39... Qc6 {[%clk 0:00:09.8]} 40. Qc3 {[%clk 0:00:03.6]} 40...
e5 {[%clk 0:00:09.2]} 41. Kg1 {[%clk 0:00:03.5]} 41... Rf4 {[%clk 0:00:07.8]}
42. Rxf4 {[%clk 0:00:03.4]} 42... exf4 {[%clk 0:00:08.7]} 43. Qe5+ {[%clk
0:00:03.6]} 43... Kh6 {[%clk 0:00:07.6]} 44. Qxf4+ {[%clk 0:00:03.9]} 44... g5
{[%clk 0:00:07.3]} 45. Qf5 {[%clk 0:00:03]} 1-0

[Event "*** Titled Tuesday Blitz"]
[Site "Chess.com"]
[Date "2021.03.09"]
[Round "7"]
[White "SharapovEvgeny"]
[Black "attack2mateU"]
[Result "0-1"]
[WhiteElo "2496"]
[BlackElo "2739"]
[TimeControl "180+1"]
[EndTime "11:22:16 PST"]
[Termination "attack2mateU won by resignation"]

1. c4 {[%clk 0:02:59.8]} 1... g6 {[%clk 0:02:59.6]} 2. Nc3 {[%clk 0:02:59.2]}
2... c5 {[%clk 0:02:57.5]} 3. Nf3 {[%clk 0:02:58]} 3... Nc6 {[%clk 0:02:57]} 4.
d4 {[%clk 0:02:57.4]} 4... cxd4 {[%clk 0:02:57.9]} 5. Nxd4 {[%clk 0:02:57.2]}
5... Bg7 {[%clk 0:02:58.6]} 6. e3 {[%clk 0:02:55.7]} 6... Nf6 {[%clk 0:02:57.6]}
7. Be2 {[%clk 0:02:55.3]} 7... O-O {[%clk 0:02:58.2]} 8. O-O {[%clk 0:02:54.3]}
8... d6 {[%clk 0:02:57.8]} 9. b3 {[%clk 0:02:48.4]} 9... d5 {[%clk 0:02:30.1]}
10. cxd5 {[%clk 0:02:47]} 10... Nxd4 {[%clk 0:02:26.9]} 11. exd4 {[%clk
0:02:43.6]} 11... Nxd5 {[%clk 0:02:27.1]} 12. Nxd5 {[%clk 0:02:43.2]} 12... Qxd5
{[%clk 0:02:28]} 13. Be3 {[%clk 0:02:43.2]} 13... Bf5 {[%clk 0:02:21]} 14. Bc4
{[%clk 0:02:41]} 14... Qd7 {[%clk 0:02:19.7]} 15. Qf3 {[%clk 0:02:37.6]} 15...
Rfd8 {[%clk 0:02:00.2]} 16. h3 {[%clk 0:02:33.5]} 16... b5 {[%clk 0:01:42.1]}
17. Bxf7+ {[%clk 0:02:22.2]} 17... Kxf7 {[%clk 0:01:43]} 18. g4 {[%clk
0:02:21.2]} 18... Qd5 {[%clk 0:01:23]} 19. Qxd5+ {[%clk 0:02:18.3]} 19... Rxd5
{[%clk 0:01:23.9]} 20. gxf5 {[%clk 0:02:18.5]} 20... gxf5 {[%clk 0:01:22.3]} 21.
Rac1 {[%clk 0:02:11]} 21... Rad8 {[%clk 0:01:21.5]} 22. Rc5 {[%clk 0:02:01.4]}
22... a6 {[%clk 0:00:48.9]} 23. Rfc1 {[%clk 0:01:57.6]} 23... e6 {[%clk
0:00:41.4]} 24. Rxd5 {[%clk 0:01:50.4]} 24... Rxd5 {[%clk 0:00:41.2]} 25. Rc7+
{[%clk 0:01:47.1]} 25... Kf8 {[%clk 0:00:32.1]} 26. Rc6 {[%clk 0:01:43.3]} 26...
Bxd4 {[%clk 0:00:31.2]} 27. Bxd4 {[%clk 0:01:40.6]} 27... Rxd4 {[%clk
0:00:32.1]} 28. Rxe6 {[%clk 0:01:38.9]} 28... Kf7 {[%clk 0:00:19.5]} 29. Rxa6
{[%clk 0:01:37.2]} 29... b4 {[%clk 0:00:19.8]} 30. Kg2 {[%clk 0:01:31.5]} 30...
h5 {[%clk 0:00:19.3]} 31. Rc6 {[%clk 0:01:23.2]} 31... Rd2 {[%clk 0:00:15.1]}
32. Rc4 {[%clk 0:01:20.2]} 32... Rxa2 {[%clk 0:00:14.7]} 33. Rxb4 {[%clk
0:01:20.1]} 33... Kf6 {[%clk 0:00:13.8]} 34. h4 {[%clk 0:01:16.2]} 34... Ke5
{[%clk 0:00:12.1]} 35. Rb8 {[%clk 0:01:13.6]} 35... Kf4 {[%clk 0:00:11.7]} 36.
b4 {[%clk 0:01:11.5]} 36... Rb2 {[%clk 0:00:10.4]} 37. b5 {[%clk 0:01:07.7]}
37... Kg4 {[%clk 0:00:10.5]} 38. b6 {[%clk 0:01:04.2]} 38... f4 {[%clk
0:00:10.4]} 39. Kf1 {[%clk 0:00:44.7]} 39... f3 {[%clk 0:00:08.5]} 40. Ke1
{[%clk 0:00:44.2]} 40... Kxh4 {[%clk 0:00:07.3]} 41. b7 {[%clk 0:00:40.9]} 41...
Kh3 {[%clk 0:00:07]} 42. Kd1 {[%clk 0:00:35.8]} 42... h4 {[%clk 0:00:07.2]} 43.
Kc1 {[%clk 0:00:35]} 43... Rb6 {[%clk 0:00:07.8]} 44. Kd2 {[%clk 0:00:32.9]}
44... Kh2 {[%clk 0:00:08.2]} 45. Ke3 {[%clk 0:00:31.9]} 45... Rb3+ {[%clk
0:00:08.4]} 46. Kf4 {[%clk 0:00:30.9]} 46... h3 {[%clk 0:00:09.3]} 47. Kg4
{[%clk 0:00:24.9]} 47... Kg2 {[%clk 0:00:09]} 48. Kf4 {[%clk 0:00:18.1]} 48...
Kxf2 {[%clk 0:00:09.1]} 49. Rc8 {[%clk 0:00:14.5]} 49... Rb4+ {[%clk 0:00:08.2]}
50. Kg5 {[%clk 0:00:13.1]} 50... Rxb7 {[%clk 0:00:08.5]} 51. Rc2+ {[%clk
0:00:10.4]} 51... Kg3 {[%clk 0:00:08.5]} 0-1

[Event "*** Titled Tuesday Blitz"]
[Site "Chess.com"]
[Date "2021.03.09"]
[Round "7"]
[White "chesslh19"]
[Black "gatocorbis"]
[Result "0-1"]
[WhiteElo "2256"]
[BlackElo "2110"]
[TimeControl "180+1"]
[EndTime "11:22:16 PST"]
[Termination "gatocorbis won on time"]

1. e4 {[%clk 0:03:00.9]} 1... c5 {[%clk 0:02:58.8]} 2. Nf3 {[%clk 0:03:00.8]}
2... d6 {[%clk 0:02:58.3]} 3. d4 {[%clk 0:03:01.1]} 3... cxd4 {[%clk 0:02:57.5]}
4. Nxd4 {[%clk 0:03:02]} 4... Nf6 {[%clk 0:02:57.3]} 5. Nc3 {[%clk 0:03:02.7]}
5... g6 {[%clk 0:02:56.8]} 6. Be3 {[%clk 0:03:02.3]} 6... Bg7 {[%clk 0:02:56.3]}
7. f3 {[%clk 0:03:03]} 7... O-O {[%clk 0:02:55.4]} 8. Qd2 {[%clk 0:03:03.4]}
8... Nc6 {[%clk 0:02:55.4]} 9. O-O-O {[%clk 0:03:04.1]} 9... d5 {[%clk
0:02:51.4]} 10. Kb1 {[%clk 0:03:04.1]} 10... e5 {[%clk 0:02:49.7]} 11. Nxc6
{[%clk 0:03:03.7]} 11... bxc6 {[%clk 0:02:49.1]} 12. exd5 {[%clk 0:03:04.4]}
12... Nxd5 {[%clk 0:02:44.8]} 13. Nxd5 {[%clk 0:03:05.3]} 13... cxd5 {[%clk
0:02:44.5]} 14. Qxd5 {[%clk 0:03:06.2]} 14... Qc7 {[%clk 0:02:34.9]} 15. Qxa8
{[%clk 0:03:01]} 15... Bf5 {[%clk 0:02:33.7]} 16. Qd5 {[%clk 0:03:00.9]} 16...
Qxc2+ {[%clk 0:02:32.1]} 17. Ka1 {[%clk 0:03:01.1]} 17... Rb8 {[%clk 0:02:18.2]}
18. Bb5 {[%clk 0:01:42.9]} 18... h5 {[%clk 0:01:50.6]} 19. Qc4 {[%clk
0:00:35.3]} 19... Qxg2 {[%clk 0:01:42]} 20. Bc1 {[%clk 0:00:23.3]} 20... Qxf3
{[%clk 0:01:33.2]} 21. Rhf1 {[%clk 0:00:15.5]} 21... Qe4 {[%clk 0:01:32.5]} 22.
Qxe4 {[%clk 0:00:13.9]} 22... Bxe4 {[%clk 0:01:31]} 23. Bc4 {[%clk 0:00:14.2]}
23... Rb7 {[%clk 0:01:26.1]} 24. Bd5 {[%clk 0:00:13.2]} 24... Bxd5 {[%clk
0:01:24]} 25. Rxd5 {[%clk 0:00:14.1]} 25... Rc7 {[%clk 0:01:22.6]} 26. Kb1
{[%clk 0:00:13.5]} 26... f5 {[%clk 0:01:18.4]} 27. Bg5 {[%clk 0:00:11.4]} 27...
e4 {[%clk 0:01:17.1]} 28. Rc1 {[%clk 0:00:10]} 28... Rb7 {[%clk 0:01:16.1]} 29.
Rd8+ {[%clk 0:00:08.8]} 29... Kh7 {[%clk 0:01:14.8]} 30. b3 {[%clk 0:00:07.9]}
30... a5 {[%clk 0:01:11.8]} 31. Rdc8 {[%clk 0:00:07.9]} 31... Rd7 {[%clk
0:01:05.9]} 32. R8c7 {[%clk 0:00:07.2]} 32... Rxc7 {[%clk 0:00:54.6]} 33. Rxc7
{[%clk 0:00:06.6]} 33... Kg8 {[%clk 0:00:55.1]} 34. Bd2 {[%clk 0:00:06.1]} 34...
Kf8 {[%clk 0:00:53.5]} 35. Bxa5 {[%clk 0:00:05.5]} 35... f4 {[%clk 0:00:53.1]}
36. Bb4+ {[%clk 0:00:05.6]} 36... Kg8 {[%clk 0:00:52]} 37. Bc5 {[%clk
0:00:04.7]} 37... e3 {[%clk 0:00:50.2]} 38. Kc1 {[%clk 0:00:04.5]} 38... Be5
{[%clk 0:00:45.7]} 39. Kd1 {[%clk 0:00:04.7]} 39... Bxc7 {[%clk 0:00:44.9]} 40.
Ke2 {[%clk 0:00:03.5]} 40... g5 {[%clk 0:00:44.2]} 41. h3 {[%clk 0:00:03.1]}
41... g4 {[%clk 0:00:42.7]} 42. hxg4 {[%clk 0:00:04]} 42... hxg4 {[%clk
0:00:42.5]} 43. b4 {[%clk 0:00:04.7]} 43... Kf7 {[%clk 0:00:41.6]} 44. b5 {[%clk
0:00:05.1]} 44... Ke6 {[%clk 0:00:38.8]} 45. a4 {[%clk 0:00:03.9]} 45... Kd5
{[%clk 0:00:37.4]} 46. b6 {[%clk 0:00:03.7]} 46... Bb8 {[%clk 0:00:35.9]} 47.
Bb4 {[%clk 0:00:02.8]} 47... Kc6 {[%clk 0:00:20.1]} 48. a5 {[%clk 0:00:03]}
48... Kb5 {[%clk 0:00:19]} 49. Bc3 {[%clk 0:00:03]} 49... Ka6 {[%clk 0:00:18.2]}
50. Bb4 {[%clk 0:00:03.1]} 50... Be5 {[%clk 0:00:17.5]} 0-1